[Event "44th Chess Olympiad Open 2022"]
[Site "Chennai"]
[Date "2022.08.08"]
[Round "10.72"]
[White "Guterres, Cosme"]
[Black "Hinga, Githinji"]
[Result "0-1"]
[WhiteElo "1692"]
[BlackElo "1954"]
[Annotator "NA RC"]
[PlyCount "108"]
[EventDate "2022.??.??"]
[TimeControl "60"]

1. a3 {[%emt 0:00:05]} e5 {[%emt 0:00:26]} 2. d3 {[%emt 0:00:40]} Nf6 {[%emt 0:
00:00]} 3. Bg5 {[%emt 0:00:42]} Bc5 {[%emt 0:00:45]} 4. e3 {[%emt 0:00:26]} d6
{[%emt 0:00:34]} 5. Be2 {[%emt 0:00:29]} Bb6 {[%emt 0:00:24]} 6. c3 {[%emt 0:
00:00]} Nbd7 {[%emt 0:00:27]} 7. Nd2 {[%emt 0:00:42]} c6 {[%emt 0:00:39]} 8. b4
{[%emt 0:00:48]} h6 {[%emt 0:01:15]} 9. Bh4 {[%emt 0:00:29]} Nf8 {[%emt 0:00:
00]} 10. a4 {[%emt 0:01:19]} Ng6 {[%emt 0:00:07]} 11. Bg3 {[%emt 0:00:32]} a6 {
[%emt 0:02:24]} 12. a5 {[%emt 0:00:58]} Ba7 {[%emt 0:00:51]} 13. d4 {[%emt 0:
00:00]} Qe7 {[%emt 0:02:20]} 14. h3 {[%emt 0:01:54]} d5 {[%emt 0:03:14]} 15.
Qb3 {[%emt 0:02:52]} O-O {[%emt 0:01:34]} 16. Ngf3 {[%emt 0:04:23]} Bb8 {
[%emt 0:07:19]} 17. Nh2 {[%emt 0:01:59]} exd4 {[%emt 0:01:40]} 18. cxd4 {
[%emt 0:02:28]} Bxg3 {[%emt 0:00:37]} 19. fxg3 {[%emt 0:01:46]} Re8 {[%emt 0:
00:00]} 20. Ra3 {[%emt 0:00:58]} Qd6 {[%emt 0:01:16]} 21. Kf2 {[%emt 0:00:34]}
Bf5 {[%emt 0:02:27]} 22. Re1 {[%emt 0:00:51]} Re7 {[%emt 0:01:07]} 23. Nhf1 {
[%emt 0:00:42]} Rae8 {[%emt 0:00:40]} 24. Bf3 {[%emt 0:00:36]} Nf8 {[%emt 0:00:
00]} 25. Qc3 {[%emt 0:01:25]} Ne6 {[%emt 0:01:04]} 26. g4 {[%emt 0:02:59]} Bg6
{[%emt 0:01:03]} 27. Raa1 {[%emt 0:01:37]} Ng5 {[%emt 0:01:02]} 28. Qc5 {
[%emt 0:03:03]} Qd7 {[%emt 0:02:41]} 29. Ra3 {[%emt 0:01:45]} Be4 {[%emt 0:00:
00]} 30. h4 {[%emt 0:03:17]} Nxg4+ {[%emt 0:07:12]} 31. Kg1 {[%emt 0:01:43]}
Bxf3 {[%emt 0:05:52]} 32. gxf3 {[%emt 0:02:02]} Ne6 {[%emt 0:00:36]} 33. Qc2 {
[%emt 0:00:42]} Nxd4 {[%emt 0:05:48]} 34. Qb1 {[%emt 0:02:12]} Nb5 {[%emt 0:00:
00]} 35. Rb3 {[%emt 0:00:42]} Nf6 {[%emt 0:00:37]} 36. Kg2 {[%emt 0:00:29]} Qe6
{[%emt 0:01:01]} 37. Ng3 {[%emt 0:01:01]} Nd6 {[%emt 0:00:32]} 38. Ndf1 {
[%emt 0:00:51]} g5 {[%emt 0:04:19]} 39. hxg5 {[%emt 0:01:32]} hxg5 {[%emt 0:00:
00]} 40. Qc2 {[%emt 0:01:38]} Kg7 {[%emt 0:00:20]} 41. Kg1 {[%emt 0:32:29]} Rh8
{[%emt 0:30:54]} 42. Rbb1 {[%emt 0:00:49]} Nh5 {[%emt 0:00:53]} 43. Qg2 {
[%emt 0:02:25]} Nxg3 {[%emt 0:01:58]} 44. Nxg3 {[%emt 0:00:58]} Nf5 {[%emt 0:
00:00]} 45. Nxf5+ {[%emt 0:03:13]} Qxf5 {[%emt 0:05:47]} 46. e4 {[%emt 0:01:15]
} dxe4 {[%emt 0:01:16]} 47. fxe4 {[%emt 0:00:34]} Qf4 {[%emt 0:03:04]} 48. Qf2
{[%emt 0:01:15]} Rh1+ {[%emt 0:00:15]} 49. Kxh1 {[%emt 0:00:39]} Qxf2 {[%emt 0:
00:00]} 50. Rf1 {[%emt 0:00:57]} Qg3 {[%emt 0:00:32]} 51. Rb2 {[%emt 0:00:59]}
Rxe4 {[%emt 0:00:36]} 52. Rg2 {[%emt 0:00:50]} Rh4+ {[%emt 0:00:32]} 53. Kg1 {
[%emt 0:00:23]} Qe3+ {[%emt 0:00:27]} 54. Rff2 {[%emt 0:00:27]} f6 {[%emt 0:00:
00]} 0-1

[Event "44th Chess Olympiad Open 2022"]
[Site "Chennai"]
[Date "2022.08.08"]
[Round "10.73"]
[White "Arnold Smith"]
[Black "Dlamini Simphiwe"]
[Result "1/2-1/2"]
[WhiteElo "1931"]
[BlackElo "1569"]
[Annotator "NA RC"]
[PlyCount "131"]
[EventDate "2022.??.??"]
[TimeControl "60"]

1. e4 {[%emt 0:00:03]} c6 {[%emt 0:00:04]} 2. Nf3 {[%emt 0:01:02]} d5 {[%emt 0:
00:00]} 3. Nc3 {[%emt 0:01:09]} dxe4 {[%emt 0:00:07]} 4. Nxe4 {[%emt 0:01:31]}
Bf5 {[%emt 0:00:08]} 5. Ng3 {[%emt 0:02:30]} Bg6 {[%emt 0:00:06]} 6. h4 {
[%emt 0:01:29]} h6 {[%emt 0:00:12]} 7. Ne5 {[%emt 0:03:13]} Qd6 {[%emt 0:00:29]
} 8. d4 {[%emt 0:03:12]} Nd7 {[%emt 0:00:20]} 9. Nxg6 {[%emt 0:02:47]} Qxg6 {
[%emt 0:00:08]} 10. Bd3 {[%emt 0:00:51]} Qd6 {[%emt 0:00:17]} 11. Be3 {[%emt 0:
00:00]} Ngf6 {[%emt 0:00:49]} 12. O-O {[%emt 0:01:52]} e6 {[%emt 0:00:32]} 13.
c4 {[%emt 0:02:31]} Be7 {[%emt 0:01:07]} 14. Re1 {[%emt 0:00:59]} Rd8 {[%emt 0:
00:00]} 15. a3 {[%emt 0:00:41]} O-O {[%emt 0:00:09]} 16. Qf3 {[%emt 0:01:15]}
c5 {[%emt 0:09:46]} 17. d5 {[%emt 0:02:33]} Ne5 {[%emt 0:00:30]} 18. Qe2 {
[%emt 0:00:26]} Nxd3 {[%emt 0:04:12]} 19. Qxd3 {[%emt 0:01:27]} Ng4 {[%emt 0:
00:00]} 20. Qe4 {[%emt 0:03:38]} Nxe3 {[%emt 0:06:08]} 21. Rxe3 {[%emt 0:10:07]
} Bf6 {[%emt 0:00:57]} 22. Rb3 {[%emt 0:17:44]} b6 {[%emt 0:10:18]} 23. Rd1 {
[%emt 0:07:47]} Bd4 {[%emt 0:02:59]} 24. Ne2 {[%emt 0:09:46]} exd5 {[%emt 0:00:
00]} 25. cxd5 {[%emt 0:00:29]} Qxd5 {[%emt 0:17:26]} 26. Qxd5 {[%emt 0:00:29]}
Rxd5 {[%emt 0:00:07]} 27. Nxd4 {[%emt 0:00:26]} Rfd8 {[%emt 0:02:49]} 28. Rbd3
{[%emt 0:01:09]} Kf8 {[%emt 0:00:09]} 29. Kf1 {[%emt 0:00:12]} cxd4 {[%emt 0:
00:00]} 30. Rc1 {[%emt 0:00:55]} Ke7 {[%emt 0:00:34]} 31. Ke2 {[%emt 0:03:11]}
Rc5 {[%emt 0:02:12]} 32. Rcd1 {[%emt 0:01:25]} Rc2+ {[%emt 0:01:12]} 33. R1d2 {
[%emt 0:00:23]} Rxd2+ {[%emt 0:00:03]} 34. Rxd2 {[%emt 0:00:13]} Ke6 {[%emt 0:
00:00]} 35. Kd3 {[%emt 0:00:26]} Kf5 {[%emt 0:02:01]} 36. Re2 {[%emt 0:01:11]}
Rd7 {[%emt 0:00:40]} 37. Re4 {[%emt 0:00:23]} f6 {[%emt 0:01:45]} 38. g4+ {
[%emt 0:00:41]} Kg6 {[%emt 0:00:00]} 39. f4 {[%emt 0:06:48]} f5 {[%emt 0:02:00]
} 40. Re6+ {[%emt 0:00:46]} Kf7 {[%emt 0:01:29]} 41. gxf5 {[%emt 0:30:25]} Rd5
{[%emt 0:31:23]} 42. Re5 {[%emt 0:00:11]} Rd6 {[%emt 0:04:59]} 43. h5 {[%emt 0:
00:00]} Kf6 {[%emt 0:00:34]} 44. b4 {[%emt 0:00:20]} Kf7 {[%emt 0:02:13]} 45.
a4 {[%emt 0:00:13]} Kf6 {[%emt 0:04:11]} 46. a5 {[%emt 0:01:19]} bxa5 {[%emt 0:
00:00]} 47. Rxa5 {[%emt 0:00:06]} Rb6 {[%emt 0:01:27]} 48. b5 {[%emt 0:07:32]}
Kxf5 {[%emt 0:01:21]} 49. Rxa7 {[%emt 0:00:14]} Rxb5 {[%emt 0:03:09]} 50. Rxg7
{[%emt 0:02:40]} Kxf4 {[%emt 0:00:01]} 51. Kxd4 {[%emt 0:00:02]} Rxh5 {[%emt 0:
00:00]} 52. Rf7+ {[%emt 0:00:07]} Kg3 {[%emt 0:00:49]} 53. Ke3 {[%emt 0:00:07]}
Re5+ {[%emt 0:00:40]} 54. Kd2 {[%emt 0:00:02]} h5 {[%emt 0:00:53]} 55. Rg7+ {
[%emt 0:00:18]} Kh3 {[%emt 0:02:23]} 56. Rg1 {[%emt 0:00:43]} h4 {[%emt 0:00:
00]} 57. Rg7 {[%emt 0:00:18]} Kh2 {[%emt 0:02:02]} 58. Rg4 {[%emt 0:02:34]} h3
{[%emt 0:00:28]} 59. Rg7 {[%emt 0:00:12]} Ra5 {[%emt 0:00:38]} 60. Ke2 {
[%emt 0:00:22]} Ra2+ {[%emt 0:00:18]} 61. Kf1 {[%emt 0:00:32]} Rg2 {[%emt 0:00:
00]} 62. Rh7 {[%emt 0:00:37]} Rg3 {[%emt 0:00:51]} 63. Rh8 {[%emt 0:00:00]} Rg4
{[%emt 0:00:00]} 64. Rh7 {[%emt 0:00:00]} Rf4+ {[%emt 0:00:00]} 65. Ke2 {
[%emt 0:00:00]} Kg3 {[%emt 0:00:00]} 66. Rg7+ {[%emt 0:00:00]} 1/2-1/2

[Event "44th Chess Olympiad Open 2022"]
[Site "Chennai"]
[Date "2022.08.08"]
[Round "10.73"]
[White "Barcon, Harmon"]
[Black "Mbongeni, Mabuza"]
[Result "1-0"]
[WhiteElo "1902"]
[BlackElo "1669"]
[Annotator "NA RC"]
[PlyCount "55"]
[EventDate "2022.??.??"]
[TimeControl "60"]

1. e4 {[%emt 0:00:03]} e5 {[%emt 0:00:20]} 2. Nf3 {[%emt 0:00:04]} Nf6 {
[%emt 0:00:06]} 3. Nxe5 {[%emt 0:00:19]} d6 {[%emt 0:00:07]} 4. Nf3 {[%emt 0:
00:00]} Nxe4 {[%emt 0:00:04]} 5. d4 {[%emt 0:00:11]} d5 {[%emt 0:00:05]} 6. Bd3
{[%emt 0:00:11]} Be7 {[%emt 0:00:47]} 7. O-O {[%emt 0:00:18]} O-O {[%emt 0:00:
00]} 8. Re1 {[%emt 0:00:20]} Bf5 {[%emt 0:02:03]} 9. Nbd2 {[%emt 0:03:06]} Nd6
{[%emt 0:00:35]} 10. Bxf5 {[%emt 0:01:07]} Nxf5 {[%emt 0:00:06]} 11. Nf1 {
[%emt 0:00:42]} Nd7 {[%emt 0:01:28]} 12. Qd3 {[%emt 0:00:28]} g6 {[%emt 0:00:
00]} 13. Ng3 {[%emt 0:04:36]} Nxg3 {[%emt 0:00:00]} 14. hxg3 {[%emt 0:08:14]}
Bf6 {[%emt 0:00:00]} 15. Bf4 {[%emt 0:01:12]} Nb6 {[%emt 0:02:44]} 16. Rad1 {
[%emt 0:02:08]} Nc4 {[%emt 0:00:22]} 17. b3 {[%emt 0:00:22]} Nb2 {[%emt 0:00:
00]} 18. Qc3 {[%emt 0:00:24]} Nxd1 {[%emt 0:00:06]} 19. Rxd1 {[%emt 0:00:15]}
c6 {[%emt 0:03:06]} 20. Qb4 {[%emt 0:00:42]} Qd7 {[%emt 0:02:47]} 21. Ne5 {
[%emt 0:02:56]} Bxe5 {[%emt 0:00:26]} 22. dxe5 {[%emt 0:00:04]} b6 {[%emt 0:00:
00]} 23. Bg5 {[%emt 0:00:19]} Qf5 {[%emt 0:07:58]} 24. Bf6 {[%emt 0:00:40]}
Qxc2 {[%emt 0:05:10]} 25. Re1 {[%emt 0:01:09]} Qf5 {[%emt 0:00:29]} 26. g4 {
[%emt 0:00:22]} c5 {[%emt 0:00:25]} 27. Qd2 {[%emt 0:00:34]} Qxf6 {[%emt 0:00:
00]} 28. exf6 {[%emt 0:00:12]} 1-0

[Event "44th Chess Olympiad Open 2022"]
[Site "Chennai"]
[Date "2022.08.08"]
[Round "10.73"]
[White "Sihlongonyane, Sikhanyiso"]
[Black "Bobby Ballah"]
[Result "1/2-1/2"]
[WhiteElo "1658"]
[BlackElo "1916"]
[Annotator "NA RC"]
[PlyCount "83"]
[EventDate "2022.??.??"]
[TimeControl "60"]

1. e4 {[%emt 0:00:05]} c5 {[%emt 0:00:16]} 2. Nf3 {[%emt 0:00:06]} e6 {[%emt 0:
00:00]} 3. d3 {[%emt 0:03:55]} g6 {[%emt 0:05:45]} 4. g3 {[%emt 0:00:48]} Bg7 {
[%emt 0:00:29]} 5. Bg2 {[%emt 0:00:11]} Ne7 {[%emt 0:00:29]} 6. O-O {[%emt 0:
00:00]} Nbc6 {[%emt 0:03:00]} 7. c3 {[%emt 0:00:20]} d5 {[%emt 0:04:18]} 8.
Nbd2 {[%emt 0:02:05]} O-O {[%emt 0:02:11]} 9. Re1 {[%emt 0:01:14]} d4 {[%emt 0:
00:00]} 10. Qc2 {[%emt 0:10:03]} b6 {[%emt 0:10:29]} 11. c4 {[%emt 0:05:31]} e5
{[%emt 0:02:15]} 12. a3 {[%emt 0:07:44]} h6 {[%emt 0:03:17]} 13. Nf1 {[%emt 0:
00:00]} Bg4 {[%emt 0:03:48]} 14. h3 {[%emt 0:03:12]} Be6 {[%emt 0:00:09]} 15.
g4 {[%emt 0:01:41]} Qd7 {[%emt 0:06:51]} 16. Nh4 {[%emt 0:16:10]} Kh7 {[%emt 0:
00:00]} 17. Ng3 {[%emt 0:00:31]} Rg8 {[%emt 0:05:00]} 18. Kh2 {[%emt 0:01:02]}
Raf8 {[%emt 0:10:07]} 19. Rf1 {[%emt 0:01:35]} Bxg4 {[%emt 0:03:36]} 20. hxg4 {
[%emt 0:02:59]} Qxg4 {[%emt 0:00:05]} 21. Nf3 {[%emt 0:00:13]} f5 {[%emt 0:00:
00]} 22. Qe2 {[%emt 0:15:40]} f4 {[%emt 0:00:37]} 23. Kg1 {[%emt 0:12:16]} h5 {
[%emt 0:06:05]} 24. Nh1 {[%emt 0:04:51]} h4 {[%emt 0:11:27]} 25. Nxd4 {[%emt 0:
00:00]} Qxe2 {[%emt 0:02:55]} 26. Nxe2 {[%emt 0:00:01]} f3 {[%emt 0:00:09]} 27.
Nc3 {[%emt 0:01:03]} fxg2 {[%emt 0:00:34]} 28. Kxg2 {[%emt 0:00:04]} Nd4 {
[%emt 0:02:36]} 29. Bg5 {[%emt 0:01:37]} Bf6 {[%emt 0:01:07]} 30. Bxf6 {
[%emt 0:00:08]} Rxf6 {[%emt 0:00:02]} 31. Nd5 {[%emt 0:00:52]} Nxd5 {[%emt 0:
00:00]} 32. exd5 {[%emt 0:01:18]} Rf3 {[%emt 0:00:05]} 33. Rad1 {[%emt 0:01:26]
} Kg7 {[%emt 0:04:54]} 34. Rfe1 {[%emt 0:00:10]} h3+ {[%emt 0:01:13]} 35. Kh2 {
[%emt 0:00:56]} Kf6 {[%emt 0:00:49]} 36. Re3 {[%emt 0:00:58]} Rh8 {[%emt 0:00:
00]} 37. Rxf3+ {[%emt 0:00:24]} Nxf3+ {[%emt 0:00:15]} 38. Kg3 {[%emt 0:00:05]}
Nd4 {[%emt 0:00:25]} 39. Re1 {[%emt 0:00:27]} Nf5+ {[%emt 0:01:03]} 40. Kh2 {
[%emt 0:00:28]} g5 {[%emt 0:00:26]} 41. Ng3 {[%emt 0:30:51]} Nd4 {[%emt 0:00:
00]} 42. Re3 {[%emt 0:00:33]} 1/2-1/2

[Event "44th Chess Olympiad Open 2022"]
[Site "Chennai"]
[Date "2022.08.08"]
[Round "10.73"]
[White "Nxumalo, Vuyo"]
[Black "Joel O. Ebiekuta"]
[Result "0-1"]
[WhiteElo "1493"]
[BlackElo "1848"]
[Annotator "NA RC"]
[PlyCount "69"]
[EventDate "2022.??.??"]
[TimeControl "60"]

1. e4 {[%emt 0:00:53]} e6 {[%emt 0:00:36]} 2. Nf3 {[%emt 0:00:44]} d5 {[%emt 0:
00:00]} 3. exd5 {[%emt 0:00:23]} exd5 {[%emt 0:00:13]} 4. d4 {[%emt 0:00:08]}
Nf6 {[%emt 0:00:09]} 5. Bd3 {[%emt 0:00:36]} Be7 {[%emt 0:00:37]} 6. O-O {
[%emt 0:00:22]} h6 {[%emt 0:00:06]} 7. Re1 {[%emt 0:01:17]} O-O {[%emt 0:01:04]
} 8. Nbd2 {[%emt 0:00:54]} Nc6 {[%emt 0:00:27]} 9. c3 {[%emt 0:00:15]} Bd6 {
[%emt 0:00:38]} 10. h3 {[%emt 0:00:41]} Re8 {[%emt 0:02:49]} 11. Nf1 {[%emt 0:
00:00]} Re6 {[%emt 0:01:11]} 12. Rxe6 {[%emt 0:05:02]} Bxe6 {[%emt 0:00:16]}
13. Be3 {[%emt 0:00:22]} Ne4 {[%emt 0:00:30]} 14. Bxe4 {[%emt 0:02:11]} dxe4 {
[%emt 0:00:17]} 15. N3d2 {[%emt 0:00:08]} f5 {[%emt 0:00:27]} 16. Qc2 {[%emt 0:
00:00]} Bf7 {[%emt 0:01:14]} 17. f4 {[%emt 0:02:10]} Qh4 {[%emt 0:00:42]} 18.
g3 {[%emt 0:16:49]} Qxh3 {[%emt 0:01:04]} 19. Re1 {[%emt 0:00:09]} g5 {[%emt 0:
00:00]} 20. Re2 {[%emt 0:00:39]} Qg4 {[%emt 0:01:26]} 21. Rg2 {[%emt 0:00:38]}
Kg7 {[%emt 0:01:09]} 22. Nh2 {[%emt 0:01:03]} Qh3 {[%emt 0:01:19]} 23. fxg5 {
[%emt 0:01:10]} hxg5 {[%emt 0:00:51]} 24. Bxg5 {[%emt 0:05:08]} Rh8 {[%emt 0:
00:00]} 25. Ndf1 {[%emt 0:05:13]} Bc4 {[%emt 0:01:04]} 26. Qf2 {[%emt 0:01:56]}
Bxf1 {[%emt 0:01:42]} 27. Kxf1 {[%emt 0:00:47]} Kf7 {[%emt 0:01:22]} 28. Bf4 {
[%emt 0:01:18]} Ne7 {[%emt 0:00:51]} 29. g4 {[%emt 0:07:13]} Nd5 {[%emt 0:00:
00]} 30. Bc1 {[%emt 0:04:41]} f4 {[%emt 0:00:07]} 31. Ke2 {[%emt 0:05:48]} Qd3+
{[%emt 0:01:53]} 32. Ke1 {[%emt 0:01:27]} f3 {[%emt 0:00:38]} 33. g5 {[%emt 0:
00:00]} Kg6 {[%emt 0:01:11]} 34. Nxf3 {[%emt 0:03:41]} exf3 {[%emt 0:01:22]}
35. Rg1 {[%emt 0:01:12]} 0-1

[Event "44th Chess Olympiad Open 2022"]
[Site "Chennai"]
[Date "2022.08.08"]
[Round "10.74"]
[White "Hassan Sidi Mohamed Cheikh"]
[Black "Kibrom Weldegebriel Beraki"]
[Result "1-0"]
[WhiteElo "1825"]
[BlackElo "1793"]
[Annotator "NA RC"]
[PlyCount "121"]
[EventDate "2022.??.??"]
[TimeControl "60"]

1. d4 {[%emt 0:00:17]} Nf6 {[%emt 0:00:08]} 2. Nc3 {[%emt 0:00:47]} d5 {
[%emt 0:00:18]} 3. Bg5 {[%emt 0:00:06]} Bf5 {[%emt 0:00:50]} 4. f3 {[%emt 0:00:
00]} Nc6 {[%emt 0:01:12]} 5. Qd2 {[%emt 0:04:43]} e6 {[%emt 0:00:38]} 6. e4 {
[%emt 0:01:06]} dxe4 {[%emt 0:01:04]} 7. fxe4 {[%emt 0:00:06]} Bg4 {[%emt 0:00:
00]} 8. e5 {[%emt 0:04:20]} h6 {[%emt 0:01:06]} 9. Bh4 {[%emt 0:02:46]} Ne4 {
[%emt 0:06:13]} 10. Nxe4 {[%emt 0:04:56]} Qxh4+ {[%emt 0:00:17]} 11. g3 {
[%emt 0:00:17]} Qd8 {[%emt 0:00:58]} 12. c3 {[%emt 0:00:54]} Qd5 {[%emt 0:00:
00]} 13. Bg2 {[%emt 0:00:19]} Qb5 {[%emt 0:00:55]} 14. a4 {[%emt 0:00:34]} Qb3
{[%emt 0:01:28]} 15. Ne2 {[%emt 0:02:52]} O-O-O {[%emt 0:01:07]} 16. Nc1 {
[%emt 0:03:28]} Qb6 {[%emt 0:00:53]} 17. Nd3 {[%emt 0:05:16]} Nxd4 {[%emt 0:00:
00]} 18. a5 {[%emt 0:09:04]} Nc2+ {[%emt 0:01:48]} 19. Qxc2 {[%emt 0:00:28]}
Qe3+ {[%emt 0:00:22]} 20. Kf1 {[%emt 0:00:46]} Qxd3+ {[%emt 0:27:43]} 21. Qxd3
{[%emt 0:00:12]} Rxd3 {[%emt 0:00:27]} 22. Nf2 {[%emt 0:00:08]} Rd2 {[%emt 0:
00:00]} 23. Nxg4 {[%emt 0:00:08]} Rxb2 {[%emt 0:00:13]} 24. a6 {[%emt 0:01:56]}
bxa6 {[%emt 0:02:31]} 25. Nf2 {[%emt 0:04:28]} f5 {[%emt 0:01:56]} 26. Rxa6 {
[%emt 0:06:06]} Kd7 {[%emt 0:01:01]} 27. Bc6+ {[%emt 0:00:38]} Kd8 {[%emt 0:00:
00]} 28. Nd3 {[%emt 0:04:19]} Rc2 {[%emt 0:01:40]} 29. Rxa7 {[%emt 0:00:20]}
Rxc3 {[%emt 0:00:38]} 30. Ra8+ {[%emt 0:01:40]} Ke7 {[%emt 0:00:08]} 31. Bb5 {
[%emt 0:00:29]} c6 {[%emt 0:01:01]} 32. Ba4 {[%emt 0:00:38]} Rxd3 {[%emt 0:00:
00]} 33. Ke2 {[%emt 0:00:03]} Rd5 {[%emt 0:01:34]} 34. Ra7+ {[%emt 0:00:19]}
Kd8 {[%emt 0:01:41]} 35. Rb1 {[%emt 0:00:33]} Rxe5+ {[%emt 0:00:46]} 36. Kf3 {
[%emt 0:00:13]} Kc8 {[%emt 0:01:02]} 37. Bxc6 {[%emt 0:02:04]} Rc5 {[%emt 0:00:
00]} 38. Bd7+ {[%emt 0:00:45]} Kd8 {[%emt 0:00:36]} 39. Bxe6 {[%emt 0:00:24]}
Rc3+ {[%emt 0:00:22]} 40. Kg2 {[%emt 0:00:15]} Bd6 {[%emt 0:01:33]} 41. Rd7+ {
[%emt 0:30:24]} Ke8 {[%emt 0:30:17]} 42. Rxd6 {[%emt 0:02:12]} Rc2+ {[%emt 0:
00:00]} 43. Kh3 {[%emt 0:01:23]} Ke7 {[%emt 0:00:20]} 44. Ra6 {[%emt 0:00:14]}
Rc7 {[%emt 0:00:00]} 45. Bxf5 {[%emt 0:00:00]} Rd8 {[%emt 0:00:00]} 46. Re6+ {
[%emt 0:00:00]} Kf7 {[%emt 0:00:00]} 47. Rbe1 {[%emt 0:00:00]} Rf8 {[%emt 0:00:
00]} 48. Bg6+ {[%emt 0:00:00]} Kg8 {[%emt 0:00:00]} 49. Re8 {[%emt 0:00:00]}
Rc8 {[%emt 0:00:00]} 50. Rxc8 {[%emt 0:00:00]} Rxc8 {[%emt 0:00:00]} 51. Re8+ {
[%emt 0:00:00]} Rxe8 {[%emt 0:00:00]} 52. Bxe8 {[%emt 0:00:00]} Kh7 {[%emt 0:
00:00]} 53. Kg4 {[%emt 0:00:00]} Kg8 {[%emt 0:00:00]} 54. Bg6 {[%emt 0:00:00]}
Kh8 {[%emt 0:00:00]} 55. Kf5 {[%emt 0:00:00]} Kg8 {[%emt 0:00:00]} 56. Ke6 {
[%emt 0:00:00]} Kf8 {[%emt 0:00:00]} 57. Bh7 {[%emt 0:00:00]} Ke8 {[%emt 0:00:
00]} 58. Bg6+ {[%emt 0:00:55]} Kf8 {[%emt 0:00:00]} 59. Bf7 {[%emt 0:00:00]} g6
{[%emt 0:00:00]} 60. Kf6 {[%emt 0:00:00]} g5 {[%emt 0:00:00]} 61. Ba2 {[%emt 0:
00:00]} 1-0

[Event "44th Chess Olympiad Open 2022"]
[Site "Chennai"]
[Date "2022.08.08"]
[Round "10.74"]
[White "Asante Debesai Zerabruk"]
[Black "Cheikhna, Mohamed Lemine"]
[Result "0-1"]
[WhiteElo "1785"]
[BlackElo "1899"]
[Annotator "NA RC"]
[PlyCount "92"]
[EventDate "2022.??.??"]
[TimeControl "60"]

1. e4 {[%emt 0:00:25]} c5 {[%emt 0:00:13]} 2. Nf3 {[%emt 0:00:05]} Nc6 {
[%emt 0:00:14]} 3. d3 {[%emt 0:01:57]} g6 {[%emt 0:01:33]} 4. g3 {[%emt 0:00:
00]} Bg7 {[%emt 0:00:09]} 5. Bg2 {[%emt 0:00:02]} d6 {[%emt 0:00:13]} 6. O-O {
[%emt 0:00:09]} Nf6 {[%emt 0:00:30]} 7. Re1 {[%emt 0:00:08]} e5 {[%emt 0:00:31]
} 8. Nbd2 {[%emt 0:00:21]} O-O {[%emt 0:00:19]} 9. h3 {[%emt 0:01:22]} h6 {
[%emt 0:00:14]} 10. c3 {[%emt 0:00:19]} Nh7 {[%emt 0:01:26]} 11. g4 {[%emt 0:
00:00]} Be6 {[%emt 0:03:27]} 12. Nf1 {[%emt 0:00:13]} f5 {[%emt 0:07:26]} 13.
exf5 {[%emt 0:05:37]} gxf5 {[%emt 0:00:10]} 14. gxf5 {[%emt 0:05:03]} Bxf5 {
[%emt 0:00:09]} 15. Ng3 {[%emt 0:05:22]} Bg6 {[%emt 0:00:55]} 16. Nh2 {[%emt 0:
00:00]} Qd7 {[%emt 0:06:40]} 17. Ng4 {[%emt 0:07:29]} Ng5 {[%emt 0:04:26]} 18.
h4 {[%emt 0:15:06]} Nf7 {[%emt 0:00:54]} 19. Be4 {[%emt 0:01:07]} Ne7 {[%emt 0:
00:00]} 20. h5 {[%emt 0:08:55]} Bxe4 {[%emt 0:00:00]} 21. dxe4 {[%emt 0:05:07]}
Kh7 {[%emt 0:00:00]} 22. Ne3 {[%emt 0:02:35]} Ng5 {[%emt 0:04:21]} 23. Nef5 {
[%emt 0:02:24]} Nxf5 {[%emt 0:01:13]} 24. exf5 {[%emt 0:00:10]} Nh3+ {[%emt 0:
00:00]} 25. Kf1 {[%emt 0:06:22]} Nf4 {[%emt 0:04:27]} 26. Qg4 {[%emt 0:00:00]}
Qf7 {[%emt 0:04:20]} 27. Bxf4 {[%emt 0:00:00]} exf4 {[%emt 0:00:07]} 28. Qxf4 {
[%emt 0:00:00]} Be5 {[%emt 0:00:10]} 29. Qe3 {[%emt 0:02:34]} Bxg3 {[%emt 0:00:
00]} 30. Qxg3 {[%emt 0:00:01]} Rg8 {[%emt 0:00:39]} 31. Qf3 {[%emt 0:00:54]}
Rg5 {[%emt 0:01:41]} 32. Re6 {[%emt 0:03:50]} Rxf5 {[%emt 0:01:33]} 33. Qe4 {
[%emt 0:00:01]} Kg8 {[%emt 0:01:34]} 34. Qg2+ {[%emt 0:01:34]} Rg5 {[%emt 0:00:
00]} 35. Qe4 {[%emt 0:02:02]} Rf8 {[%emt 0:00:53]} 36. Rg6+ {[%emt 0:00:34]}
Rxg6 {[%emt 0:02:22]} 37. Qxg6+ {[%emt 0:00:02]} Qxg6 {[%emt 0:00:13]} 38. hxg6
{[%emt 0:00:01]} Rf6 {[%emt 0:00:37]} 39. Re1 {[%emt 0:00:01]} Kf8 {[%emt 0:00:
00]} 40. g7+ {[%emt 0:01:08]} Kxg7 {[%emt 0:00:12]} 41. Re8 {[%emt 0:30:13]}
Rf8 {[%emt 0:33:50]} 42. Re6 {[%emt 0:00:00]} Rf6 {[%emt 0:00:00]} 43. Re8 {
[%emt 0:00:00]} h5 {[%emt 0:00:00]} 44. Kg2 {[%emt 0:00:00]} Kg6 {[%emt 0:00:
00]} 45. f3 {[%emt 0:00:00]} d5 {[%emt 0:07:53]} 46. Rd8 {[%emt 0:00:15]} Rb6 {
[%emt 0:03:51]} 0-1

[Event "44th Chess Olympiad Open 2022"]
[Site "Chennai"]
[Date "2022.08.08"]
[Round "10.75"]
[White "De Gondo, Simplice Armel"]
[Black "Shawabke Ziyad"]
[Result "1-0"]
[WhiteElo "2135"]
[BlackElo "1786"]
[Annotator "NA RC"]
[PlyCount "101"]
[EventDate "2022.??.??"]
[TimeControl "60"]

1. d4 {[%emt 0:00:02]} Nf6 {[%emt 0:00:19]} 2. Nf3 {[%emt 0:00:02]} d5 {
[%emt 0:00:14]} 3. e3 {[%emt 0:00:01]} c5 {[%emt 0:00:10]} 4. c3 {[%emt 0:00:
00]} e6 {[%emt 0:01:26]} 5. Nbd2 {[%emt 0:00:05]} Nc6 {[%emt 0:00:50]} 6. Bd3 {
[%emt 0:00:02]} Bd6 {[%emt 0:00:51]} 7. O-O {[%emt 0:00:26]} O-O {[%emt 0:00:
00]} 8. Qe2 {[%emt 0:00:39]} b6 {[%emt 0:00:53]} 9. e4 {[%emt 0:00:28]} dxe4 {
[%emt 0:13:48]} 10. Nxe4 {[%emt 0:00:03]} Bb7 {[%emt 0:00:36]} 11. Nxf6+ {
[%emt 0:00:12]} gxf6 {[%emt 0:03:22]} 12. Bh6 {[%emt 0:00:03]} Re8 {[%emt 0:00:
00]} 13. dxc5 {[%emt 0:00:05]} bxc5 {[%emt 0:07:56]} 14. Rad1 {[%emt 0:00:11]}
Ne7 {[%emt 0:18:17]} 15. Bb5 {[%emt 0:04:00]} Qc7 {[%emt 0:01:24]} 16. Bxe8 {
[%emt 0:01:59]} Rxe8 {[%emt 0:00:02]} 17. h3 {[%emt 0:00:02]} Kh8 {[%emt 0:00:
00]} 18. Rd2 {[%emt 0:26:57]} Rg8 {[%emt 0:00:23]} 19. Rfd1 {[%emt 0:00:01]}
Nf5 {[%emt 0:00:31]} 20. Rxd6 {[%emt 0:04:45]} Nxd6 {[%emt 0:06:47]} 21. Bf4 {
[%emt 0:00:04]} Qc6 {[%emt 0:00:13]} 22. Rxd6 {[%emt 0:00:59]} Qxf3 {[%emt 0:
00:00]} 23. Qxf3 {[%emt 0:05:33]} Bxf3 {[%emt 0:00:03]} 24. Bg3 {[%emt 0:00:02]
} Bd5 {[%emt 0:19:51]} 25. b3 {[%emt 0:00:02]} c4 {[%emt 0:01:05]} 26. b4 {
[%emt 0:00:02]} h5 {[%emt 0:01:13]} 27. h4 {[%emt 0:01:07]} Kg7 {[%emt 0:04:05]
} 28. Rd7 {[%emt 0:00:40]} Ra8 {[%emt 0:00:25]} 29. f3 {[%emt 0:01:12]} Kf8 {
[%emt 0:00:21]} 30. Bd6+ {[%emt 0:00:03]} Kg7 {[%emt 0:00:44]} 31. b5 {[%emt 0:
00:00]} e5 {[%emt 0:01:22]} 32. Bc5 {[%emt 0:03:45]} Be6 {[%emt 0:01:41]} 33.
Rxa7 {[%emt 0:05:56]} Rxa7 {[%emt 0:00:02]} 34. Bxa7 {[%emt 0:00:17]} Kf8 {
[%emt 0:00:40]} 35. Bc5+ {[%emt 0:00:09]} Ke8 {[%emt 0:00:14]} 36. Kf2 {
[%emt 0:00:06]} Kd7 {[%emt 0:00:10]} 37. Ke3 {[%emt 0:00:06]} Bd5 {[%emt 0:00:
00]} 38. g4 {[%emt 0:00:50]} Ke6 {[%emt 0:03:31]} 39. gxh5 {[%emt 0:01:50]} Kf5
{[%emt 0:01:32]} 40. a4 {[%emt 0:00:23]} Be6 {[%emt 0:01:45]} 41. Bf8 {[%emt 0:
00:00]} Bd5 {[%emt 0:32:39]} 42. Bg7 {[%emt 0:00:05]} Be6 {[%emt 0:00:00]} 43.
h6 {[%emt 0:00:00]} Kg6 {[%emt 0:00:00]} 44. h5+ {[%emt 0:00:00]} Kh7 {[%emt 0:
00:00]} 45. Bxf6 {[%emt 0:00:00]} Kxh6 {[%emt 0:00:00]} 46. Bxe5 {[%emt 0:00:
00]} Kxh5 {[%emt 0:00:00]} 47. b6 {[%emt 0:00:00]} Bd5 {[%emt 0:00:00]} 48. f4
{[%emt 0:00:00]} Bb7 {[%emt 0:00:00]} 49. Kd4 {[%emt 0:03:40]} Kg6 {[%emt 0:00:
00]} 50. Kxc4 {[%emt 0:00:00]} f6 {[%emt 0:00:00]} 51. Bc7 {[%emt 0:00:00]} 1-0